[Event "Live Chess"]
[Site "Chess.com"]
[Date "2023.05.20"]
[Round "-"]
[White "TheSmoulderingMaster"]
[Black "KGreenGator"]
[Result "0-1"]
[WhiteElo "1715"]
[BlackElo "1777"]
[TimeControl "300"]
[EndTime "14:07:19 PDT"]
[Termination "KGreenGator won by checkmate"]

1. e4 {[%clk 0:04:58.8]} 1... c5 {[%clk 0:04:58.5]} 2. Nf3 {[%clk 0:04:57.5]}
2... Nc6 {[%clk 0:04:56.7]} 3. d4 {[%clk 0:04:56.8]} 3... cxd4 {[%clk
0:04:55.4]} 4. Nxd4 {[%clk 0:04:56.2]} 4... e5 {[%clk 0:04:54.9]} 5. Nb5 {[%clk
0:04:55.2]} 5... d6 {[%clk 0:04:53.5]} 6. N1c3 {[%clk 0:04:53.7]} 6... a6 {[%clk
0:04:53]} 7. Na3 {[%clk 0:04:52.6]} 7... Nf6 {[%clk 0:04:52.3]} 8. Bg5 {[%clk
0:04:51.2]} 8... Be7 {[%clk 0:04:50.9]} 9. Bxf6 {[%clk 0:04:50.8]} 9... Bxf6
{[%clk 0:04:50.2]} 10. Nd5 {[%clk 0:04:50.7]} 10... Bg5 {[%clk 0:04:49.1]} 11.
Bd3 {[%clk 0:04:45.6]} 11... O-O {[%clk 0:04:47.9]} 12. O-O {[%clk 0:04:44.7]}
12... b5 {[%clk 0:04:40.6]} 13. f4 {[%clk 0:04:41.5]} 13... exf4 {[%clk
0:04:39]} 14. Nxf4 {[%clk 0:04:40.7]} 14... Qb6+ {[%clk 0:04:34.3]} 15. Kh1
{[%clk 0:04:38.6]} 15... Bb7 {[%clk 0:04:25.5]} 16. Nd5 {[%clk 0:04:37.1]} 16...
Qd8 {[%clk 0:04:22.4]} 17. Qg4 {[%clk 0:04:30.8]} 17... Ne5 {[%clk 0:04:20]} 18.
Qh5 {[%clk 0:04:28.4]} 18... Nxd3 {[%clk 0:04:17.4]} 19. cxd3 {[%clk 0:04:26.9]}
19... g6 {[%clk 0:04:15.1]} 20. Qg4 {[%clk 0:04:24.1]} 20... Bxd5 {[%clk
0:04:07.3]} 21. exd5 {[%clk 0:04:22.6]} 21... f5 {[%clk 0:04:05.2]} 22. Qg3
{[%clk 0:04:19.6]} 22... f4 {[%clk 0:03:58.1]} 23. Qg4 {[%clk 0:04:17.4]} 23...
Rf5 {[%clk 0:03:48]} 24. Nc2 {[%clk 0:04:11.2]} 24... Qc8 {[%clk 0:03:43.1]} 25.
Nb4 {[%clk 0:04:02.5]} 25... a5 {[%clk 0:03:40]} 26. Nc6 {[%clk 0:04:00]} 26...
Bf6 {[%clk 0:03:25.4]} 27. Rae1 {[%clk 0:03:55]} 27... Rxd5 {[%clk 0:03:16.6]}
28. Qxc8+ {[%clk 0:03:39.4]} 28... Rxc8 {[%clk 0:03:13.9]} 29. Ne7+ {[%clk
0:03:39.2]} 29... Bxe7 {[%clk 0:03:12]} 30. Rxe7 {[%clk 0:03:39.1]} 30... Re5
{[%clk 0:03:09.1]} 31. Rd7 {[%clk 0:03:37.1]} 31... Rc6 {[%clk 0:03:07]} 32. h3
{[%clk 0:03:34.8]} 32... Rf5 {[%clk 0:03:04.6]} 33. Re1 {[%clk 0:03:32.9]} 33...
Rf7 {[%clk 0:02:54.3]} 34. Rd8+ {[%clk 0:03:28.2]} 34... Rf8 {[%clk 0:02:52.8]}
35. Rd7 {[%clk 0:03:26.8]} 35... Rf7 {[%clk 0:02:47.8]} 36. Rd8+ {[%clk
0:03:24.4]} 36... Kg7 {[%clk 0:02:46.5]} 37. Ree8 {[%clk 0:03:20.9]} 37... f3
{[%clk 0:02:37.9]} 38. gxf3 {[%clk 0:03:17.4]} 38... Rxf3 {[%clk 0:02:35.5]} 39.
Kg2 {[%clk 0:03:15.9]} 39... Rf7 {[%clk 0:02:31.3]} 40. Kg3 {[%clk 0:03:13.8]}
40... Rc2 {[%clk 0:02:29.1]} 41. Kg4 {[%clk 0:03:10.9]} 41... Rg2+ {[%clk
0:02:25.3]} 42. Kh4 {[%clk 0:03:09.7]} 42... Rf4# {[%clk 0:02:23.8]} 0-1

[Event "Live Chess"]
[Site "Chess.com"]
[Date "2023.05.20"]
[Round "-"]
[White "smoggyrabbit"]
[Black "trekker123"]
[Result "0-1"]
[WhiteElo "1687"]
[BlackElo "2097"]
[TimeControl "300"]
[EndTime "14:07:29 PDT"]
[Termination "trekker123 won on time"]

1. d4 {[%clk 0:04:59]} 1... d5 {[%clk 0:04:58.2]} 2. Nf3 {[%clk 0:04:58.2]} 2...
Nf6 {[%clk 0:04:56]} 3. e3 {[%clk 0:04:57.3]} 3... g6 {[%clk 0:04:52.4]} 4. Be2
{[%clk 0:04:51.6]} 4... Bg7 {[%clk 0:04:51.4]} 5. O-O {[%clk 0:04:50.7]} 5...
O-O {[%clk 0:04:50.9]} 6. b3 {[%clk 0:04:50]} 6... c6 {[%clk 0:04:48.5]} 7. Bb2
{[%clk 0:04:49.2]} 7... Bg4 {[%clk 0:04:42.6]} 8. Nbd2 {[%clk 0:04:46.6]} 8...
Nbd7 {[%clk 0:04:39.4]} 9. h3 {[%clk 0:04:45.5]} 9... Bxf3 {[%clk 0:04:35.3]}
10. Nxf3 {[%clk 0:04:45.4]} 10... Ne4 {[%clk 0:04:33.5]} 11. c4 {[%clk
0:04:40.4]} 11... e6 {[%clk 0:04:31.6]} 12. Nd2 {[%clk 0:04:30.6]} 12... f5
{[%clk 0:04:06.5]} 13. f3 {[%clk 0:04:24.5]} 13... Nxd2 {[%clk 0:04:00]} 14.
Qxd2 {[%clk 0:04:24.4]} 14... Qg5 {[%clk 0:03:29.1]} 15. Qd3 {[%clk 0:03:43.3]}
15... Rad8 {[%clk 0:03:18.6]} 16. e4 {[%clk 0:03:36]} 16... f4 {[%clk
0:03:00.8]} 17. cxd5 {[%clk 0:03:17]} 17... exd5 {[%clk 0:02:57.9]} 18. e5
{[%clk 0:03:12]} 18... Rfe8 {[%clk 0:02:41.8]} 19. b4 {[%clk 0:02:36.3]} 19...
a6 {[%clk 0:02:34.1]} 20. Qd2 {[%clk 0:02:09.5]} 20... Nf8 {[%clk 0:02:27.8]}
21. a4 {[%clk 0:01:46.8]} 21... Ne6 {[%clk 0:02:24.5]} 22. b5 {[%clk 0:01:29]}
22... c5 {[%clk 0:02:22.1]} 23. bxa6 {[%clk 0:01:26.4]} 23... bxa6 {[%clk
0:02:18.7]} 24. Bxa6 {[%clk 0:01:25.2]} 24... Nxd4 {[%clk 0:02:13.7]} 25. Bxd4
{[%clk 0:01:18.8]} 25... cxd4 {[%clk 0:02:12.9]} 26. Bb7 {[%clk 0:00:50.1]}
26... Qxe5 {[%clk 0:01:53.6]} 27. Rfe1 {[%clk 0:00:40.1]} 27... Qd6 {[%clk
0:01:40.5]} 28. a5 {[%clk 0:00:26.7]} 28... Re3 {[%clk 0:01:32.6]} 29. a6 {[%clk
0:00:23.1]} 29... Qb6 {[%clk 0:01:31.2]} 30. Reb1 {[%clk 0:00:19]} 30... Qa7
{[%clk 0:01:29.7]} 31. Qa5 {[%clk 0:00:16.8]} 31... Bf6 {[%clk 0:01:13.9]} 32.
Bxd5+ {[%clk 0:00:13.3]} 32... Kh8 {[%clk 0:01:02.7]} 33. Rb7 {[%clk 0:00:12.3]}
33... Qa8 {[%clk 0:00:46.4]} 34. Rxh7+ {[%clk 0:00:07.7]} 34... Kxh7 {[%clk
0:00:45.8]} 35. Bxa8 {[%clk 0:00:06.9]} 35... Rxa8 {[%clk 0:00:44.5]} 36. a7
{[%clk 0:00:05.3]} 36... Re7 {[%clk 0:00:38.2]} 37. Qc5 {[%clk 0:00:04.1]} 37...
d3 {[%clk 0:00:30]} 38. Qb6 {[%clk 0:00:03.4]} 38... Bxa1 {[%clk 0:00:25]} 39.
Qb8 {[%clk 0:00:02.2]} 39... Re8 {[%clk 0:00:22.9]} 40. Qxf4 {[%clk 0:00:00.8]}
40... Rxa7 {[%clk 0:00:19.3]} 41. Qh4+ {[%clk 0:00:00.7]} 41... Kg7 {[%clk
0:00:17.3]} 0-1

[Event "Live Chess"]
[Site "Chess.com"]
[Date "2023.05.20"]
[Round "-"]
[White "mliszewski"]
[Black "Bob2pen"]
[Result "1-0"]
[WhiteElo "1863"]
[BlackElo "1837"]
[TimeControl "300"]
[EndTime "14:07:29 PDT"]
[Termination "mliszewski won by checkmate"]

1. d4 {[%clk 0:04:59.6]} 1... Nf6 {[%clk 0:04:57.2]} 2. Bg5 {[%clk 0:04:58.5]}
2... c5 {[%clk 0:04:54.3]} 3. d5 {[%clk 0:04:56.9]} 3... Qb6 {[%clk 0:04:49.1]}
4. Nc3 {[%clk 0:04:56.2]} 4... Qxb2 {[%clk 0:04:47.2]} 5. Bd2 {[%clk 0:04:55.5]}
5... d6 {[%clk 0:04:42.9]} 6. Rb1 {[%clk 0:04:41.3]} 6... Qa3 {[%clk 0:04:41.2]}
7. Nb5 {[%clk 0:04:40.5]} 7... Qxa2 {[%clk 0:04:36.8]} 8. Nc7+ {[%clk
0:04:38.6]} 8... Kd7 {[%clk 0:04:35.9]} 9. Nxa8 {[%clk 0:04:37.5]} 9... b6
{[%clk 0:04:30.5]} 10. Ra1 {[%clk 0:04:30.8]} 10... Qxd5 {[%clk 0:04:28.2]} 11.
Rxa7+ {[%clk 0:04:29.2]} 11... Kc6 {[%clk 0:04:22.3]} 12. Qb1 {[%clk 0:04:07.1]}
12... b5 {[%clk 0:04:18.7]} 13. Rc7# {[%clk 0:04:01.2]} 1-0

[Event "Live Chess"]
[Site "Chess.com"]
[Date "2023.05.20"]
[Round "-"]
[White "Wild_Tiger"]
[Black "nigelst"]
[Result "0-1"]
[WhiteElo "1072"]
[BlackElo "1811"]
[TimeControl "300"]
[EndTime "14:07:40 PDT"]
[Termination "nigelst won by checkmate"]

1. d4 {[%clk 0:04:56.5]} 1... Nf6 {[%clk 0:04:58]} 2. Bg5 {[%clk 0:04:47.1]}
2... e6 {[%clk 0:04:56.6]} 3. e4 {[%clk 0:04:42.2]} 3... Be7 {[%clk 0:04:53.1]}
4. e5 {[%clk 0:04:37.2]} 4... Ng8 {[%clk 0:04:50.8]} 5. Bxe7 {[%clk 0:04:30.8]}
5... Nxe7 {[%clk 0:04:49.1]} 6. Nf3 {[%clk 0:04:30.6]} 6... O-O {[%clk
0:04:47.3]} 7. Bd3 {[%clk 0:04:27.9]} 7... Ng6 {[%clk 0:04:42.4]} 8. Nbd2 {[%clk
0:04:18.9]} 8... d6 {[%clk 0:04:39.7]} 9. O-O {[%clk 0:04:09.9]} 9... Bd7 {[%clk
0:04:34.4]} 10. Ne4 {[%clk 0:04:08]} 10... Bc6 {[%clk 0:04:31.6]} 11. Neg5
{[%clk 0:04:00.1]} 11... h6 {[%clk 0:04:27.8]} 12. Bxg6 {[%clk 0:03:38.4]} 12...
hxg5 {[%clk 0:04:24.9]} 13. Bh5 {[%clk 0:03:25.7]} 13... g6 {[%clk 0:04:14.3]}
14. Bg4 {[%clk 0:03:22.9]} 14... Kg7 {[%clk 0:04:08]} 15. Qd2 {[%clk 0:03:19]}
15... Rh8 {[%clk 0:04:05.1]} 16. Nxg5 {[%clk 0:03:14.8]} 16... dxe5 {[%clk
0:03:56.9]} 17. Qe3 {[%clk 0:02:43.7]} 17... Qxd4 {[%clk 0:03:51.9]} 18. Qxd4
{[%clk 0:02:21.8]} 18... exd4 {[%clk 0:03:49.7]} 19. Rad1 {[%clk 0:02:09.6]}
19... e5 {[%clk 0:03:44.9]} 20. Nf3 {[%clk 0:02:05.4]} 20... f6 {[%clk
0:03:42.5]} 21. b3 {[%clk 0:01:49.1]} 21... Na6 {[%clk 0:03:40.7]} 22. a3 {[%clk
0:01:46.6]} 22... Be4 {[%clk 0:03:35]} 23. Rd2 {[%clk 0:01:41.2]} 23... f5
{[%clk 0:03:28.6]} 24. Bh3 {[%clk 0:01:32.1]} 24... Bxf3 {[%clk 0:03:27.4]} 25.
gxf3 {[%clk 0:01:31]} 25... Rxh3 {[%clk 0:03:25.9]} 26. Re1 {[%clk 0:01:27.3]}
26... Re8 {[%clk 0:03:22.4]} 27. f4 {[%clk 0:01:23.1]} 27... e4 {[%clk
0:03:18.3]} 28. Rxd4 {[%clk 0:01:20.1]} 28... Nc5 {[%clk 0:03:15.8]} 29. Rc4
{[%clk 0:01:13.1]} 29... Ne6 {[%clk 0:03:10.8]} 30. Rd1 {[%clk 0:01:08.1]} 30...
Re7 {[%clk 0:03:06.4]} 31. Kg2 {[%clk 0:01:02.2]} 31... Nxf4+ {[%clk 0:03:03.5]}
32. Kh1 {[%clk 0:00:51.7]} 32... Kf6 {[%clk 0:02:44]} 33. Kg1 {[%clk 0:00:23.4]}
33... Reh7 {[%clk 0:02:42.1]} 34. Kf1 {[%clk 0:00:21.4]} 34... Rxh2 {[%clk
0:02:40.8]} 35. Ke1 {[%clk 0:00:21]} 35... Rg2 {[%clk 0:02:27.3]} 36. a4 {[%clk
0:00:11.7]} 36... Rhh2 {[%clk 0:02:22.9]} 37. Rd7 {[%clk 0:00:07]} 37... Rxf2
{[%clk 0:02:19.4]} 38. Kd1 {[%clk 0:00:05.6]} 38... Rh1# {[%clk 0:02:15.8]} 0-1

[Event "Live Chess"]
[Site "Chess.com"]
[Date "2023.05.20"]
[Round "-"]
[White "Conradical12"]
[Black "chessfiction"]
[Result "0-1"]
[WhiteElo "1582"]
[BlackElo "2376"]
[TimeControl "300"]
[EndTime "14:07:41 PDT"]
[Termination "chessfiction won by resignation"]

1. e4 {[%clk 0:04:57.5]} 1... d5 {[%clk 0:04:58.6]} 2. exd5 {[%clk 0:04:56]}
2... c6 {[%clk 0:04:58.5]} 3. dxc6 {[%clk 0:04:52.7]} 3... e5 {[%clk 0:04:57.1]}
4. cxb7 {[%clk 0:04:50.6]} 4... Bxb7 {[%clk 0:04:55.7]} 5. Bc4 {[%clk
0:04:45.7]} 5... Bc5 {[%clk 0:04:52.4]} 6. Qg4 {[%clk 0:04:37.6]} 6... Qf6
{[%clk 0:04:46.6]} 7. Nf3 {[%clk 0:04:32.4]} 7... Nh6 {[%clk 0:04:44.6]} 8. Bb5+
{[%clk 0:04:27.4]} 8... Nc6 {[%clk 0:04:43]} 9. Bxc6+ {[%clk 0:04:26.1]} 9...
Bxc6 {[%clk 0:04:41.8]} 10. O-O {[%clk 0:04:23.6]} 10... Nxg4 {[%clk 0:04:40.1]}
11. Nxe5 {[%clk 0:04:19.4]} 0-1

[Event "Live Chess"]
[Site "Chess.com"]
[Date "2023.05.20"]
[Round "-"]
[White "wadsy27"]
[Black "LiamClery2020"]
[Result "1-0"]
[WhiteElo "2555"]
[BlackElo "2087"]
[TimeControl "300"]
[EndTime "14:07:42 PDT"]
[Termination "wadsy27 won by resignation"]

1. c4 {[%clk 0:04:58.1]} 1... Nf6 {[%clk 0:04:57.8]} 2. g3 {[%clk 0:04:57]} 2...
e5 {[%clk 0:04:56.1]} 3. Bg2 {[%clk 0:04:56.3]} 3... c6 {[%clk 0:04:55.6]} 4. d4
{[%clk 0:04:54.3]} 4... e4 {[%clk 0:04:54.2]} 5. Nc3 {[%clk 0:04:53.3]} 5... d5
{[%clk 0:04:53.4]} 6. cxd5 {[%clk 0:04:51.1]} 6... cxd5 {[%clk 0:04:53.3]} 7.
Bg5 {[%clk 0:04:50.5]} 7... Be6 {[%clk 0:04:51.4]} 8. Nh3 {[%clk 0:04:47.9]}
8... Nc6 {[%clk 0:04:49.5]} 9. Nf4 {[%clk 0:04:44]} 9... Be7 {[%clk 0:04:47.4]}
10. O-O {[%clk 0:04:36.5]} 10... O-O {[%clk 0:04:38.5]} 11. e3 {[%clk
0:04:33.6]} 11... h6 {[%clk 0:04:31.5]} 12. Bxf6 {[%clk 0:04:31.2]} 12... Bxf6
{[%clk 0:04:31.4]} 13. Qb3 {[%clk 0:04:29.9]} 13... Qd7 {[%clk 0:04:20.5]} 14.
Ncxd5 {[%clk 0:04:25.7]} 14... Kh8 {[%clk 0:04:19.4]} 15. Nxf6 {[%clk
0:04:24.1]} 15... gxf6 {[%clk 0:04:17.9]} 16. Qc2 {[%clk 0:04:21]} 16... f5
{[%clk 0:04:17.1]} 17. d5 {[%clk 0:04:19.6]} 17... Nb4 {[%clk 0:04:15.8]} 18.
Qc3+ {[%clk 0:04:18.3]} 1-0

[Event "Live Chess"]
[Site "Chess.com"]
[Date "2023.05.20"]
[Round "-"]
[White "LiamBellwood"]
[Black "PaulHumphreys"]
[Result "1-0"]
[WhiteElo "2057"]
[BlackElo "1360"]
[TimeControl "300"]
[EndTime "14:08:03 PDT"]
[Termination "LiamBellwood won by resignation"]

1. d4 {[%clk 0:04:57.9]} 1... d5 {[%clk 0:04:57.4]} 2. Nc3 {[%clk 0:04:57]} 2...
c5 {[%clk 0:04:50.6]} 3. Bf4 {[%clk 0:04:54.4]} 3... cxd4 {[%clk 0:04:48.4]} 4.
Qxd4 {[%clk 0:04:54.3]} 4... Nc6 {[%clk 0:04:45.4]} 5. Qxd5 {[%clk 0:04:53.8]}
5... Qxd5 {[%clk 0:04:43.6]} 6. Nxd5 {[%clk 0:04:53.7]} 6... Nd4 {[%clk
0:04:38.4]} 7. O-O-O {[%clk 0:04:50.7]} 7... e5 {[%clk 0:04:36.6]} 8. Bxe5
{[%clk 0:04:47.9]} 8... Nc6 {[%clk 0:04:28.3]} 9. Nc7+ {[%clk 0:04:46.8]} 9...
Ke7 {[%clk 0:04:26]} 10. Bd6+ {[%clk 0:04:41]} 10... Kf6 {[%clk 0:04:19]} 11.
Bxf8 {[%clk 0:04:38.8]} 1-0

[Event "Live Chess"]
[Site "Chess.com"]
[Date "2023.05.20"]
[Round "-"]
[White "SiDebanks"]
[Black "Pandreq"]
[Result "1-0"]
[WhiteElo "1363"]
[BlackElo "1255"]
[TimeControl "300"]
[EndTime "14:08:04 PDT"]
[Termination "SiDebanks won on time"]

1. d4 {[%clk 0:04:59.5]} 1... d5 {[%clk 0:04:58.1]} 2. Nc3 {[%clk 0:04:58.5]}
2... Nf6 {[%clk 0:04:55]} 3. Bf4 {[%clk 0:04:57.7]} 3... e6 {[%clk 0:04:53.3]}
4. e3 {[%clk 0:04:55.9]} 4... Bb4 {[%clk 0:04:50.1]} 5. Bd3 {[%clk 0:04:51.6]}
5... Nc6 {[%clk 0:04:41.5]} 6. Ne2 {[%clk 0:04:49.6]} 6... O-O {[%clk
0:04:38.4]} 7. a3 {[%clk 0:04:47.9]} 7... Ba5 {[%clk 0:04:36.1]} 8. O-O {[%clk
0:04:42.8]} 8... a6 {[%clk 0:04:28.5]} 9. h3 {[%clk 0:04:17.5]} 9... b5 {[%clk
0:04:26.4]} 10. b4 {[%clk 0:04:14]} 10... Bb6 {[%clk 0:04:23.5]} 11. Nc1 {[%clk
0:04:09.1]} 11... a5 {[%clk 0:04:21.9]} 12. Nb3 {[%clk 0:04:06.4]} 12... axb4
{[%clk 0:04:17.7]} 13. axb4 {[%clk 0:04:04.4]} 13... Rxa1 {[%clk 0:04:13.9]} 14.
Qxa1 {[%clk 0:03:59.5]} 14... Nxb4 {[%clk 0:04:09.7]} 15. Nxb5 {[%clk
0:03:34.7]} 15... c6 {[%clk 0:04:05]} 16. Nd6 {[%clk 0:03:15.1]} 16... Qd7
{[%clk 0:03:50.2]} 17. Nc5 {[%clk 0:03:02.5]} 17... Bxc5 {[%clk 0:03:36.3]} 18.
dxc5 {[%clk 0:03:02.4]} 18... Nxd3 {[%clk 0:03:29.5]} 19. cxd3 {[%clk
0:03:00.6]} 19... Ne8 {[%clk 0:03:05.7]} 20. Rb1 {[%clk 0:02:53]} 20... Nxd6
{[%clk 0:03:03.7]} 21. Bxd6 {[%clk 0:02:52.9]} 21... Re8 {[%clk 0:02:56.7]} 22.
Rb8 {[%clk 0:02:48]} 22... g6 {[%clk 0:02:43.8]} 23. Qa8 {[%clk 0:02:35.7]}
23... Kg7 {[%clk 0:02:25.5]} 24. g4 {[%clk 0:02:22.5]} 24... h6 {[%clk
0:02:14.2]} 25. Kg2 {[%clk 0:02:20.1]} 25... f5 {[%clk 0:02:06.5]} 26. Be5+
{[%clk 0:02:06.4]} 26... Kh7 {[%clk 0:02:04.8]} 27. gxf5 {[%clk 0:01:59.8]}
27... gxf5 {[%clk 0:02:02.3]} 28. Kf3 {[%clk 0:01:43.4]} 28... Rg8 {[%clk
0:01:52]} 29. Qa1 {[%clk 0:01:23.1]} 29... Bb7 {[%clk 0:01:41.8]} 30. Qa7 {[%clk
0:01:12.3]} 30... Rxb8 {[%clk 0:01:35.9]} 31. Qxb8 {[%clk 0:01:05]} 31... Qf7
{[%clk 0:01:23.8]} 32. Qh8+ {[%clk 0:00:54.7]} 32... Kg6 {[%clk 0:01:20.7]} 33.
Bf4 {[%clk 0:00:39.3]} 33... Qh7 {[%clk 0:01:14.3]} 34. Qe8+ {[%clk 0:00:35]}
34... Qf7 {[%clk 0:01:05.2]} 35. Qxf7+ {[%clk 0:00:30.6]} 35... Kxf7 {[%clk
0:01:02.7]} 36. Bxh6 {[%clk 0:00:29.6]} 36... Kg6 {[%clk 0:01:00.5]} 37. Bf4
{[%clk 0:00:27.6]} 37... Kh5 {[%clk 0:00:58.8]} 38. d4 {[%clk 0:00:23.5]} 38...
Ba6 {[%clk 0:00:56.7]} 39. Kg3 {[%clk 0:00:19.7]} 39... Bf1 {[%clk 0:00:53.1]}
40. h4 {[%clk 0:00:19.6]} 40... Be2 {[%clk 0:00:50.4]} 41. Bg5 {[%clk
0:00:18.3]} 41... Bg4 {[%clk 0:00:48.4]} 42. Kf4 {[%clk 0:00:18.2]} 42... Kg6
{[%clk 0:00:43.6]} 43. Ke5 {[%clk 0:00:18.1]} 43... Kf7 {[%clk 0:00:41.7]} 44.
Kd6 {[%clk 0:00:16.4]} 44... Bf3 {[%clk 0:00:32.3]} 45. Kxc6 {[%clk 0:00:16.3]}
45... e5 {[%clk 0:00:28.5]} 46. Kd7 {[%clk 0:00:16.2]} 46... exd4 {[%clk
0:00:21]} 47. exd4 {[%clk 0:00:16.1]} 47... Bg4 {[%clk 0:00:15.8]} 48. c6 {[%clk
0:00:16]} 48... f4+ {[%clk 0:00:14.4]} 49. Kd8 {[%clk 0:00:15.2]} 49... f3
{[%clk 0:00:10.6]} 50. c7 {[%clk 0:00:15.1]} 50... Kg6 {[%clk 0:00:05.5]} 51.
c8=Q {[%clk 0:00:15]} 51... Bxc8 {[%clk 0:00:04.2]} 52. Kxc8 {[%clk 0:00:14.9]}
52... Kh5 {[%clk 0:00:00.9]} 53. Kd7 {[%clk 0:00:14.8]} 1-0

[Event "Live Chess"]
[Site "Chess.com"]
[Date "2023.05.20"]
[Round "-"]
[White "EdenHazard8"]
[Black "Geomorph"]
[Result "1-0"]
[WhiteElo "2068"]
[BlackElo "1246"]
[TimeControl "300"]
[EndTime "14:08:08 PDT"]
[Termination "EdenHazard8 won by resignation"]

1. e4 {[%clk 0:04:59.2]} 1... e5 {[%clk 0:04:58.7]} 2. Nf3 {[%clk 0:04:58.5]}
2... Nc6 {[%clk 0:04:57.9]} 3. Bc4 {[%clk 0:04:57.9]} 3... Bc5 {[%clk
0:04:57.3]} 4. d3 {[%clk 0:04:56.8]} 4... d6 {[%clk 0:04:55.4]} 5. h3 {[%clk
0:04:56.2]} 5... Nf6 {[%clk 0:04:54.4]} 6. O-O {[%clk 0:04:55.6]} 6... O-O
{[%clk 0:04:53.4]} 7. c3 {[%clk 0:04:54.1]} 7... a6 {[%clk 0:04:51]} 8. Bg5
{[%clk 0:04:52.9]} 8... h6 {[%clk 0:04:49.1]} 9. Bh4 {[%clk 0:04:51.7]} 9... Be6
{[%clk 0:04:41.6]} 10. Nbd2 {[%clk 0:04:49.8]} 10... b5 {[%clk 0:04:39]} 11.
Bxe6 {[%clk 0:04:47.6]} 11... fxe6 {[%clk 0:04:37.7]} 12. Re1 {[%clk 0:04:46.3]}
12... g5 {[%clk 0:04:35.2]} 13. Bg3 {[%clk 0:04:41.8]} 13... Nh5 {[%clk
0:04:33.3]} 14. Bh2 {[%clk 0:04:38]} 14... Nf4 {[%clk 0:04:22.4]} 15. Bxf4
{[%clk 0:04:35.9]} 15... exf4 {[%clk 0:04:20.4]} 16. Qb3 {[%clk 0:04:32.1]}
16... Qe7 {[%clk 0:04:14.2]} 17. d4 {[%clk 0:04:29]} 17... Ba7 {[%clk 0:04:12]}
18. d5 {[%clk 0:04:23.5]} 18... Ne5 {[%clk 0:03:46.3]} 19. Nxe5 {[%clk
0:04:20.5]} 19... dxe5 {[%clk 0:03:45.3]} 20. Nf3 {[%clk 0:04:14.3]} 20... Qd6
{[%clk 0:03:13.1]} 21. dxe6 {[%clk 0:04:10.8]} 21... Kg7 {[%clk 0:03:07.2]} 22.
Rad1 {[%clk 0:04:08.1]} 22... Qe7 {[%clk 0:03:03.2]} 23. Rd7 {[%clk 0:04:06.6]}
1-0

[Event "Live Chess"]
[Site "Chess.com"]
[Date "2023.05.20"]
[Round "-"]
[White "JoshMcK"]
[Black "ExIsambard"]
[Result "0-1"]
[WhiteElo "1564"]
[BlackElo "1976"]
[TimeControl "300"]
[EndTime "14:08:09 PDT"]
[Termination "ExIsambard won by resignation"]

1. e4 {[%clk 0:04:59.7]} 1... Nc6 {[%clk 0:04:58.9]} 2. Nf3 {[%clk 0:04:54.4]}
2... d5 {[%clk 0:04:57.8]} 3. exd5 {[%clk 0:04:53.1]} 3... Qxd5 {[%clk
0:04:57.2]} 4. Nc3 {[%clk 0:04:49.1]} 4... Qh5 {[%clk 0:04:55.9]} 5. d4 {[%clk
0:04:47]} 5... Bg4 {[%clk 0:04:54.8]} 6. Be2 {[%clk 0:04:45.3]} 6... Nf6 {[%clk
0:04:54.1]} 7. O-O {[%clk 0:04:37]} 7... e6 {[%clk 0:04:51.4]} 8. Ne5 {[%clk
0:04:33.6]} 8... Nxe5 {[%clk 0:04:34.2]} 9. dxe5 {[%clk 0:04:33.5]} 9... Bxe2
{[%clk 0:04:31.9]} 10. Qxe2 {[%clk 0:04:29.3]} 10... Qxe2 {[%clk 0:04:27.8]} 11.
Nxe2 {[%clk 0:04:29.2]} 11... Nd5 {[%clk 0:04:26.7]} 12. f4 {[%clk 0:04:21.6]}
12... O-O-O {[%clk 0:04:24.9]} 13. b3 {[%clk 0:04:17.4]} 13... Bc5+ {[%clk
0:04:23.1]} 14. Kh1 {[%clk 0:04:15.9]} 14... h6 {[%clk 0:04:11.2]} 15. Bb2
{[%clk 0:04:10.9]} 15... Ne3 {[%clk 0:04:08.4]} 16. Rfc1 {[%clk 0:04:05.5]}
16... g5 {[%clk 0:03:52.7]} 17. g3 {[%clk 0:04:02.8]} 17... gxf4 {[%clk
0:03:50.7]} 18. gxf4 {[%clk 0:03:58.7]} 18... Rd2 {[%clk 0:03:49.5]} 19. Ng3
{[%clk 0:03:53.5]} 19... Ng4 {[%clk 0:03:42.1]} 0-1

[Event "Live Chess"]
[Site "Chess.com"]
[Date "2023.05.20"]
[Round "-"]
[White "ACx04"]
[Black "CameronM1234"]
[Result "0-1"]
[WhiteElo "415"]
[BlackElo "1130"]
[TimeControl "300"]
[EndTime "14:08:16 PDT"]
[Termination "CameronM1234 won by resignation"]

1. e4 {[%clk 0:04:59.6]} 1... g6 {[%clk 0:04:57.5]} 2. d3 {[%clk 0:04:57.6]}
2... Bg7 {[%clk 0:04:56.3]} 3. Bf4 {[%clk 0:04:56.5]} 3... d6 {[%clk 0:04:55.4]}
4. g4 {[%clk 0:04:55.5]} 4... Nf6 {[%clk 0:04:53.3]} 5. g5 {[%clk 0:04:54.4]}
5... Nh5 {[%clk 0:04:50.1]} 6. Qf3 {[%clk 0:04:48.1]} 6... Nxf4 {[%clk
0:04:48.3]} 7. Qxf4 {[%clk 0:04:45.9]} 7... e5 {[%clk 0:04:45.1]} 8. Qf3 {[%clk
0:04:44.2]} 8... Nc6 {[%clk 0:04:39.7]} 9. Ne2 {[%clk 0:04:42.5]} 9... O-O
{[%clk 0:04:34.2]} 10. a3 {[%clk 0:04:40.8]} 10... h6 {[%clk 0:04:21.5]} 11.
gxh6 {[%clk 0:04:38.8]} 11... Bxh6 {[%clk 0:04:21.4]} 12. Nec3 {[%clk
0:04:35.9]} 12... Nd4 {[%clk 0:04:19.6]} 13. Qd1 {[%clk 0:04:28.3]} 13... Be6
{[%clk 0:04:08.5]} 14. b4 {[%clk 0:04:24.4]} 14... Qd7 {[%clk 0:04:06.6]} 15.
Ne2 {[%clk 0:04:17.5]} 15... Bg4 {[%clk 0:04:04]} 16. f3 {[%clk 0:04:06.2]}
16... Bxf3 {[%clk 0:04:02.6]} 17. Rg1 {[%clk 0:04:04.3]} 17... Be3 {[%clk
0:03:54.1]} 18. Nxd4 {[%clk 0:03:58]} 18... Bxd1 {[%clk 0:03:46.5]} 19. Kxd1
{[%clk 0:03:54.4]} 19... Bxd4 {[%clk 0:03:44]} 20. Ra2 {[%clk 0:03:52.6]} 20...
Bxg1 {[%clk 0:03:42.8]} 21. Nc3 {[%clk 0:03:50.8]} 21... Qg4+ {[%clk 0:03:41.7]}
22. Kd2 {[%clk 0:03:49]} 22... Qf4+ {[%clk 0:03:38.7]} 23. Kd1 {[%clk
0:03:47.5]} 23... Qxf1+ {[%clk 0:03:36.3]} 0-1